Cogmind - Beta 12 @@@ ROGUE MODE // 2023.06.22 @ 13:55:04 Player: maxwell Result: Self-destructed Performance ------------- Evolutions (3) 1500 Regions Visited (10) 2000 Robots Destroyed (148) 740 Value Destroyed (5630) 5630 Prototype IDs (7) 140 Alien Tech Used (0) 0 Bonus (3449) 3449 TOTAL SCORE: 13459 Bonus ------- High Alert Combat Kills 1191 Follower Combat Kills 1074 Entered Garrisons 400 Used RIF Installer 1000 Friendly Fire -216 Cogmind --------- Core Integrity 71/700 Matter 127/300 Energy 220/220 System Corruption 1% Temperature Cool (67) Movement Rolling (245) Ox11 Location -7/Factory Parts ------- > --- POWER (2) -------- Light Nuclear Core Light Nuclear Core > --- PROPULSION (2) --- Wheel > --- UTILITY (6) ------ Huge Storage Unit Improved Signal Interpreter Layered Medium Armor Plating Advanced Hacking Suite Relay Coupler [Sentry] (13) > --- WEAPON (3) ------- Cooled Particle Cannon Heavy Rocket Launcher Remote Datajack > --- INVENTORY (25) --- Improved Cooling System Improved Sensor Array Improved Sensor Array Layered Medium Armor Plating Layered Medium Armor Plating Layered Medium Armor Plating Layered Medium Armor Plating Advanced Shield Generator Advanced Shield Generator Relay Coupler [NC] (31) Relay Coupler [NC] (31) Relay Coupler [NC] (28) Relay Coupler [NC] (33) Relay Coupler [Sentry] (23) Relay Coupler [Heavy] (15) Advanced System Restoration Module Advanced Trap Extractor (0/8) Cooled Pulse Rifle Cooled Pulse Rifle Cooled Particle Cannon Cooled Particle Cannon Cooled Particle Cannon Cooled Particle Cannon Remote Datajack Heavy Hammer Peak State ------------ > --- POWER ------------ Reinforced Deuterium Engine Micro Fission Core > --- PROPULSION ------- Wheel Compact Wheel > --- UTILITY ---------- Improved Heat Sink Huge Storage Unit Improved Sensor Array Improved Signal Interpreter Layered Medium Armor Plating Layered Medium Armor Plating > --- WEAPON ----------- Heavy Particle Cannon Smartbomb Launcher > --- INVENTORY -------- Neutrino Core Compact Wheel Coolant Injector Improved Sensor Array Heavy Armor Plating Layered Medium Armor Plating Layered Medium Armor Plating Hardlight Generator Shield Generator Shield Generator Shield Generator Advanced Hacking Suite Relay Coupler [NC] Relay Coupler [NC] Advanced System Restoration Module Trap Extractor Advanced Trap Extractor Wave Gun Disruptor Cannon Smartbomb Launcher Remote Datajack Heavy Hammer [Rating: 56] Favorites ----------- Power Light Nuclear Core Engine Ion Engine Power Core Light Nuclear Core Propulsion Light Treads Treads Light Treads Leg Aluminum Leg Wheel Compact Wheel Utility Huge Storage Unit Device Improved Heat Sink Storage Huge Storage Unit Processor Improved Signal Interpreter Hackware Relay Coupler [Sentry] Protection Layered Medium Armor Plating Weapon Heavy EM Pulse Gun Energy Gun Heavy EM Pulse Gun Energy Cannon Cooled Particle Cannon Ballistic Gun Assault Rifle Launcher Grenade Launcher Special Weapon Remote Datajack Impact Weapon Heavy Hammer Slashing Weapon Axe Build | -11 -10 -10 -10 -9 -8 -8 -8 -7 -7 -7 ------- Run | Jun Mat Min Exi Min Mat Sto Gar Fac Gar Fac Slots Evolved 6 | . . . . . 4 . . 2 . . Power 1 | . . . . . . . . 1 . . Propulsion . | . . . . . . . . . . . Utility 4 | . . . . . 4 . . . . . Weapon 1 | . . . . . . . . 1 . . Parts Attached 167 | . 22 4 . . 42 2 29 3 44 21 Power 18 | . . 1 . . 2 . 4 1 7 3 Engine 6 | . . 1 . . . . 3 1 1 . Core 12 | . . . . . 2 . 1 . 6 3 Reactor . | . . . . . . . . . . . Propulsion 16 | . 2 . . . 4 . 3 . 3 4 Treads 4 | . 2 . . . . . . . 1 1 Leg . | . . . . . . . . . . . Wheel 12 | . . . . . 4 . 3 . 2 3 Hover . | . . . . . . . . . . . Flight . | . . . . . . . . . . . Utility 57 | . 4 . . . 14 1 12 1 16 9 Device 24 | . 1 . . . 5 . 5 1 9 3 Storage 3 | . 1 . . . 1 . 1 . . . Processor 2 | . 1 . . . 1 . . . . . Hackware 10 | . . . . . . . . . 5 5 Protection 18 | . 1 . . . 7 1 6 . 2 1 Artifact . | . . . . . . . . . . . Weapon 76 | . 16 3 . . 22 1 10 1 18 5 Energy Gun 23 | . 4 1 . . 10 1 6 . 1 . Energy Cannon 13 | . . . . . 4 . 1 . 5 3 Ballistic Gun 7 | . 5 . . . 2 . . . . . Ballistic Cannon . | . . . . . . . . . . . Launcher 16 | . 6 1 . . 2 . 3 1 2 1 Special Weapon 4 | . . . . . . . . . 3 1 Impact Weapon 8 | . 1 1 . . 4 . . . 2 . Slashing Weapon 5 | . . . . . . . . . 5 . Piercing Weapon . | . . . . . . . . . . . Special Melee Weapon . | . . . . . . . . . . . Unidentified Prototypes 3 | . . . . . 2 . . . . 1 Corrupted Parts 1 | . . . . . 1 . . . . . System Corruption 1 | . . . . . 1 . . . . . Parts Lost 45 | . 1 2 . . 7 1 7 . 20 7 Power 9 | . . 1 . . 2 . 1 . 4 1 Propulsion 12 | . . . . . 2 1 2 . 3 4 Utility 15 | . 1 . . . 2 . 2 . 8 2 Weapon 9 | . . 1 . . 1 . 2 . 5 . Highest Loss Streak 5 | . 1 2 . . 2 1 1 . 5 1 To Critical Strikes . | . . . . . . . . . . . Average Slot Usage (%) 94 | . 97 95 85 85 90 96 98 91 92 96 Engine 7 | . 14 13 14 14 3 . 7 7 3 . Core 4 | . . . . . 3 9 1 7 10 14 Treads 10 | . 5 28 28 28 2 . . . . 8 Leg 2 | . 22 . . . . . . . . . Wheel 6 | . . . . . 15 15 17 15 10 3 Device 6 | . 2 . . . 10 18 13 15 14 2 Storage 11 | . 19 14 14 14 9 9 9 7 7 7 Processor 4 | . 4 . . . 4 9 9 7 7 7 Hackware 4 | . . . . . . . . . 7 25 Protection 11 | . . 14 14 14 24 18 21 15 6 1 Energy Gun 7 | . 7 18 . . 9 9 14 . 1 . Energy Cannon 3 | . . . . . 4 9 2 7 5 15 Ballistic Gun 1 | . 14 . . . . . . . . . Launcher 3 | . 4 3 14 14 2 . 1 6 1 . Special Weapon 1 | . . . . . . . . . 2 6 Slashing Weapon 1 | . . . . . . . . . 6 . Naked Turns . | . . . . . . . . . . . Heaviest Build 133 | 13 56 56 51 51 106 106 124 133 133 115 Greatest Support 40 | 20 40 40 40 40 40 20 26 26 32 40 Greatest Overweight (x) 11 | . 2 1 1 1 5 10 11 5 8 11 Average Overweight (x) 3 | . 1 1 1 1 3 6 4 5 4 5 Largest Inventory Capacity 25 | . 20 20 20 20 25 25 25 25 25 25 Average Capacity 22 | . 19 20 20 20 24 25 25 25 25 25 Most Carried 25 | . 20 20 19 20 25 25 25 25 25 25 Average Carried 20 | . 12 18 19 19 21 25 23 24 23 24 Final Capacity 25 | 8 20 20 20 20 25 25 25 25 25 25 Final Carried 25 | 6 18 19 19 20 25 25 25 25 25 25 Class Distribution -------------------- 59% | Mutant 19% | Bothacker-Mutant 14% | Scavenger-Mutant 6% | Commander-Mutant Dominant Class ---------------- Mutant | -10/Materials Mutant | -10/Mines Mutant | -10/Exiles Mutant | -9/Mines Mutant | -8/Materials Mutant | -8/Storage Commander-Mutant | -8/Garrison Scavenger-Mutant | -7/Factory Scavenger-Mutant | -7/Garrison Bothacker-Mutant | -7/Factory Resources | -11 -10 -10 -10 -9 -8 -8 -8 -7 -7 -7 ----------- Run | Jun Mat Min Exi Min Mat Sto Gar Fac Gar Fac Matter Collected 2615 | 200 507 106 . 52 567 57 390 . 549 187 Remotely . | . . . . . . . . . . . Salvage Created 5002 | . 627 58 . 24 1301 298 912 . 956 826 Parts 261 | . 45 15 . 4 64 7 43 . 35 48 Haulers Intercepted 3 | . 2 . . . 1 . . . . . Recyclers Shooed 5 | . . . . . 2 . . . . 3 Parts Field Recycled . | . . . . . . . . . . . Retrieved Matter . | . . . . . . . . . . . Parts Self-Destructed . | . . . . . . . . . . . Prevented . | . . . . . . . . . . . Kills | -11 -10 -10 -10 -9 -8 -8 -8 -7 -7 -7 ------- Run | Jun Mat Min Exi Min Mat Sto Gar Fac Gar Fac Combat Hostiles Destroyed 122 | . 15 9 . 7 22 7 24 . 26 12 Melee 8 | . . . . . 2 . . . 6 . Guns 34 | . 6 . . . 6 4 15 . 3 . Cannons 29 | . . . . . 6 3 1 . 7 12 AOE 46 | . 9 9 . 7 4 . 7 . 10 . Classes Destroyed 17 | . 8 . . . 3 . 4 . 2 . Worker 6 | . 3 . . 1 1 . . . . 1 Builder 4 | . 1 . . . . . . . . 3 Hauler 3 | . 2 . . . 1 . . . . . Recycler 5 | . 1 . . . 2 . . . . 2 Operator 1 | . 1 . . . . . . . . . Watcher 6 | . 1 . . . 3 . . . 1 1 Swarmer 35 | . 3 9 . 7 . 2 4 . 7 3 Cutter 3 | . . . . . . . 3 . . . Saboteur 1 | . . . . . . . . . 1 . Grunt 51 | . 12 . . . 12 4 8 . 11 4 Brawler 4 | . . . . . . . 4 . . . Duelist 10 | . . . . . 3 . 2 . 3 2 Sentry 8 | . . . . . 6 . 1 . 1 . Specialist 2 | . . . . . . . 1 . 1 . Hunter 3 | . . . . . 1 1 . . . 1 Programmer 5 | . . . . . . . . . 2 3 Behemoth 1 | . . . . . . . 1 . . . Best Kill Streak 9 | . 6 3 . 4 5 3 9 . 5 4 Combat Bots Only 9 | . 5 3 . 4 5 3 9 . 5 2 Max Kills in Single Turn 3 | . 2 2 . 3 2 1 2 . 3 2 Gunslinging 1 | . . . . . . . 1 . . . Exploded 3 | . 2 2 . 3 1 . 2 . 3 . Melee 1 | . . . . . 1 . . . 1 . Uniques/NPCs Destroyed . | . . . . . . . . . . . Combat | -11 -10 -10 -10 -9 -8 -8 -8 -7 -7 -7 -------- Run | Jun Mat Min Exi Min Mat Sto Gar Fac Gar Fac Damage Taken 7338 | . 642 113 . 158 1073 310 1559 . 2199 1284 Core 1105 | . 93 19 . 34 100 48 182 . 324 305 Absorbed by Shields 350 | . . . . . 73 . . . 277 . Redirected to Shielding 11 | . . . . . 11 . . . . . Core Remaining (%) 60 | 100 . . . 41 . . 40 . . . Volleys Fired 400 | . 57 8 . 7 58 20 83 . 73 94 Largest 3 | . 2 1 . 1 2 2 2 . 2 3 Hottest 156 | . 90 30 . 30 124 123 136 . 156 90 Shots Fired 631 | . 94 8 . 7 99 40 150 . 100 133 Gun 322 | . 75 . . . 62 20 127 . 38 . Cannon 222 | . . . . . 27 20 16 . 52 107 Launcher 61 | . 19 8 . 7 10 . 7 . 5 5 Special 26 | . . . . . . . . . 5 21 Kinetic 57 | . 57 . . . . . . . . . Thermal 435 | . . . . . 56 40 143 . 89 107 Explosive 61 | . 19 8 . 7 10 . 7 . 5 5 Electromagnetic 52 | . 18 . . . 33 . . . 1 . Robot Hit Streak 26 | . 7 6 . . 26 17 13 . 13 23 Robot Miss Streak 6 | . 5 1 . . 3 2 5 . 4 6 Penetration Max . | . . . . . . . . . . . Secondary Targets 4 | . 1 . . . . . 3 . . . Max Gunslinging Chain 1 | . 1 . . . . . 1 . . . Shots Hit Robots 404 | . 46 1 . . 87 28 81 . 80 81 Core Hits 233 | . 43 12 . 8 54 12 37 . 41 26 Critical Kills 1 | . . . . . . . . . 1 . Critical Parts Destroyed 3 | . . . . . 3 . . . . . Critical Strikes 18 | . . . . . 6 2 6 . 4 . Burn 10 | . . . . . 1 2 6 . 1 . Corrupt 2 | . . . . . 2 . . . . . Smash 4 | . . . . . 3 . . . 1 . Sever 2 | . . . . . . . . . 2 . Melee Attacks 103 | . 2 40 . . 26 . . . 35 . Thermal 1 | . . . . . . . . . 1 . Impact 78 | . 2 40 . . 26 . . . 10 . Slashing 24 | . . . . . . . . . 24 . Piercing . | . . . . . . . . . . . Sneak Attacks 2 | . . . . . 1 . . . 1 . Combat Hostiles . | . . . . . . . . . . . Follow-up Attacks 2 | . . . . . . . . . 2 . Damage Inflicted 14025 | . 1471 408 . 479 2841 702 2372 . 3315 2437 Guns 3916 | . 571 . . . 800 319 1643 . 583 . Cannons 3922 | . . . . . 507 383 227 . 938 1867 Explosions 4578 | . 900 385 . 472 683 . 502 . 1066 570 Melee 1556 | . . . . . 828 . . . 728 . Ramming 53 | . . 23 . 7 23 . . . . . Kinetic 328 | . 328 . . . . . . . . . Thermal 7228 | . 151 . . . 1117 702 1870 . 1521 1867 Explosive 4224 | . 749 385 . 472 480 . 502 . 1066 570 Electromagnetic 636 | . 243 . . . 393 . . . . . Impact 1038 | . . . . . 828 . . . 210 . Slashing 518 | . . . . . . . . . 518 . Piercing . | . . . . . . . . . . . Highest Corruption 5 | . . . . . 2 2 2 . 4 5 Average Corruption 2 | . . . . . 1 2 2 . 3 1 Corruption Purged 9 | . . . . . . . . . 4 5 Corruption Blocked . | . . . . . . . . . . . Effects 80 | . . . . . 15 6 23 . 30 6 Message Errors 17 | . . . . . 2 . 7 . 5 3 Matter Fused 15 | . . . . . 3 3 3 . 5 1 Heat Flow Errors 10 | . . . . . 1 . 4 . 4 1 Energy Discharges 14 | . . . . . 2 2 2 . 8 . Parts Rejected 1 | . . . . . . . 1 . . . Parts Fused 1 | . . . . . . . 1 . . . Data Loss (minor) 10 | . . . . . 2 . 2 . 5 1 Data Loss (major) 6 | . . . . . 2 1 1 . 2 . Misfires 3 | . . . . . 2 . 1 . . . Alerts 1 | . . . . . . . . . 1 . Weapon Failures 2 | . . . . . 1 . 1 . . . Overload Shots 1 | . . . . . . . . . . 1 Overflow Damage 585 | . 19 30 . 10 251 6 3 . 101 165 Projectiles 111 | . . . . . . 6 . . 23 82 Explosions 223 | . 19 30 . 10 8 . 3 . 70 83 Melee 251 | . . . . . 243 . . . 8 . Knockbacks 7 | . . . . . 7 . . . . . Impact 5 | . . . . . 5 . . . . . Kinetic . | . . . . . . . . . . . Secondary 2 | . . . . . 2 . . . . . Self-Inflicted Damage 313 | . 111 24 . 28 11 . 52 . 25 62 Shots 11 | . 4 2 . 1 . . 2 . 1 1 Rammed 4 | . . 2 . 1 1 . . . . . Targets Rammed 5 | . . 2 . 2 1 . . . . . Kicked . | . . . . . . . . . . . Crushed 1 | . . . . 1 . . . . . . Highest Temperature 570 | . 240 . . . 570 288 411 . 302 103 Average Temperature 117 | . 100 . . . 126 103 129 . 120 47 Received Heat Transfer 2543 | . 252 . . . 543 135 513 . 782 318 Effects 16 | . 1 . . . 8 . 7 . . . Shutdowns 2 | . . . . . 1 . 1 . . . Energy Bleed 5 | . 1 . . . 1 . 3 . . . Interference 8 | . . . . . 6 . 2 . . . Short Circuit 1 | . . . . . . . 1 . . . Siege Activations . | . . . . . . . . . . . Robots Corrupted 1 | . . . . . 1 . . . . . Combat Hostiles 1 | . . . . . 1 . . . . . Parts Fried 4 | . . . . . 4 . . . . . Impact Corruptions 11 | . . . . . 11 . . . . . Robots Melted 1 | . . . . . . . 1 . . . Combat Hostiles 1 | . . . . . . . 1 . . . Parts Melted 29 | . . . . . 3 8 5 . 8 5 Heat Transferred 11524 | . 150 . . . 1828 1258 3589 . 2257 2442 Parts Sabotaged . | . . . . . . . . . . . Parts Stolen . | . . . . . . . . . . . Parts Stripped . | . . . . . . . . . . . Power Chain Reactions 4 | . 2 . . . 2 . . . . . Missiles Intercepted . | . . . . . . . . . . . Alert | -11 -10 -10 -10 -9 -8 -8 -8 -7 -7 -7 ------- Run | Jun Mat Min Exi Min Mat Sto Gar Fac Gar Fac Peak Influence 1756 | . 373 195 . 122 505 402 1239 646 1756 1019 Initial 921 | . . 46 . . . 213 261 646 452 921 Average 480 | . 135 49 . 40 234 288 723 646 1044 878 Maximum Alert Level 5 | . 1 . . . 2 2 4 2 5 3 Low Security (%) 40 | . 68 100 . 100 41 . . . . . Level 1 13 | . 31 . . . 38 86 20 . . . Level 2 10 | . . . . . 20 13 17 100 24 . Level 3 24 | . . . . . . . 46 . 27 100 Level 4 9 | . . . . . . . 15 . 39 . Level 5 1 | . . . . . . . . . 8 . High Security . | . . . . . . . . . . . Max Security . | . . . . . . . . . . . Squads Dispatched 21 | . 4 . . . 5 . . . . 12 Investigation 8 | . 3 . . . 2 . . . . 3 Extermination 5 | . . . . . . . . . . 5 Reinforcement 6 | . 1 . . . 3 . . . . 2 Assault 2 | . . . . . . . . . . 2 Garrison . | . . . . . . . . . . . Intercept . | . . . . . . . . . . . Searches Triggered . | . . . . . . . . . . . Construction Impeded 2 | . . . . . 1 . . . . 1 Haulers Reinforced 1 | . . . . . . . . . . 1 Active Scanning Responses . | . . . . . . . . . . . Cargo Convoy Interrupts . | . . . . . . . . . . . Stealth | -11 -10 -10 -10 -9 -8 -8 -8 -7 -7 -7 --------- Run | Jun Mat Min Exi Min Mat Sto Gar Fac Gar Fac Distress Signals 10 | . 4 . . . 2 2 2 . . . Communications Jammed . | . . . . . . . . . . . Distress Signals . | . . . . . . . . . . . Times Spotted 200 | . 26 9 . 7 35 9 32 . 40 42 Peak Tracking Total 9 | . 6 3 . 4 6 3 7 . 9 6 Tactical Retreats 12 | . 1 . . 1 . . 2 . 8 . Traps | -11 -10 -10 -10 -9 -8 -8 -8 -7 -7 -7 ------- Run | Jun Mat Min Exi Min Mat Sto Gar Fac Gar Fac Traps Triggered 17 | . 3 . . . 2 1 6 . 4 1 Indirectly 1 | . 1 . . . . . . . . . Trap Hack Attempts . | . . . . . . . . . . . Triggered . | . . . . . . . . . . . Disarmed . | . . . . . . . . . . . Reprogrammed . | . . . . . . . . . . . Reused . | . . . . . . . . . . . Traps Extracted . | . . . . . . . . . . . Installed . | . . . . . . . . . . . Triggered . | . . . . . . . . . . . Machines | -11 -10 -10 -10 -9 -8 -8 -8 -7 -7 -7 ---------- Run | Jun Mat Min Exi Min Mat Sto Gar Fac Gar Fac Machines Disabled 18 | . 2 1 . . 4 . 2 . 5 4 Max in Single Turn 2 | . 2 1 . . 1 . 1 . 2 2 Garrison Access 1 | . . . . . . . . . . 1 Garrison Relay 4 | . . . . . . . 1 . 3 . Machines Repaired . | . . . . . . . . . . . Machines Sabotaged . | . . . . . . . . . . . Overloaded Fab Kills . | . . . . . . . . . . . Hacking | -11 -10 -10 -10 -9 -8 -8 -8 -7 -7 -7 --------- Run | Jun Mat Min Exi Min Mat Sto Gar Fac Gar Fac Machines Accessed 25 | . 6 . 1 . 5 4 3 1 1 4 Terminals 19 | . 4 . . . 5 3 3 . 1 3 Fabricators . | . . . . . . . . . . . Repair Stations . | . . . . . . . . . . . Recycling Units 2 | . 2 . . . . . . . . . Scanalyzers . | . . . . . . . . . . . Garrison Access 3 | . . . . . . 1 . 1 . 1 Total Hacks 76 | . 15 . 1 . 26 16 7 1 2 8 Successful 34 | . 6 . 1 . 14 9 1 1 1 1 Failed 42 | . 9 . . . 12 7 6 . 1 7 Catastrophic 6 | . 1 . . . 2 . 1 . . 2 Database Lockouts . | . . . . . . . . . . . Manual 47 | . 9 . . . 23 11 . . . 4 Terminals 69 | . 13 . . . 26 14 7 . 2 7 Fabricators . | . . . . . . . . . . . Repair Stations . | . . . . . . . . . . . Recycling Units 2 | . 2 . . . . . . . . . Scanalyzers . | . . . . . . . . . . . Garrison Access 4 | . . . . . . 2 . 1 . 1 Terminal Hacks 17 | . 4 . 1 . 7 3 1 . 1 . Record 1 | . . . 1 . . . . . . . Part Schematic 1 | . 1 . . . . . . . . . Robot Analysis 6 | . 3 . . . 3 . . . . . Prototype ID Bank 1 | . . . . . 1 . . . . . Branch Access Points 1 | . . . . . 1 . . . . . Alert Level 1 | . . . . . . 1 . . . . Locate Traps 3 | . . . . . 1 2 . . . . Recall Reinforcements 1 | . . . . . 1 . . . . . Garrison Registry 2 | . . . . . . . 1 . 1 . Fabricator Hacks . | . . . . . . . . . . . Repair Station Hacks . | . . . . . . . . . . . Recycling Unit Hacks . | . . . . . . . . . . . Scanalyzer . | . . . . . . . . . . . Garrison Access Hacks 3 | . . . . . . 1 . 1 . 1 Unlock Access 2 | . . . . . . 1 . 1 . . Seal Access 1 | . . . . . . . . . . 1 Unauthorized Hacks 14 | . 2 . . . 7 5 . . . . Terminals 12 | . . . . . 7 5 . . . . Track 1 | . . . . . 1 . . . . . Assimilate 2 | . . . . . . 2 . . . . Botnet 7 | . . . . . 5 2 . . . . Operators 2 | . . . . . 1 1 . . . . Fabricators . | . . . . . . . . . . . Repair Stations . | . . . . . . . . . . . Recycling Units 2 | . 2 . . . . . . . . . Tunnel 2 | . 2 . . . . . . . . . Scanalyzers . | . . . . . . . . . . . Garrison Access . | . . . . . . . . . . . Data Cores Recovered 2 | . 1 . . . 1 . . . . . Used . | . . . . . . . . . . . Hacking Detections 18 | . 4 . . . 5 3 2 1 . 3 Full Trace Events 5 | . . . . . 1 . 1 . . 3 Feedback Events . | . . . . . . . . . . . Feedback Blocked . | . . . . . . . . . . . Robot Schematics Acquired . | . . . . . . . . . . . Robots Built . | . . . . . . . . . . . Authchips . | . . . . . . . . . . . Time . | . . . . . . . . . . . Total Robot Build Rating . | . . . . . . . . . . . Part Schematics Acquired 1 | . 1 . . . . . . . . . Parts Built . | . . . . . . . . . . . Authchips . | . . . . . . . . . . . Time . | . . . . . . . . . . . Total Part Build Rating . | . . . . . . . . . . . Parts Repaired . | . . . . . . . . . . . Time . | . . . . . . . . . . . Parts Recycled . | . . . . . . . . . . . Recycled Matter . | . . . . . . . . . . . Retrieved Matter . | . . . . . . . . . . . Retrieved Components . | . . . . . . . . . . . Parts Scanalyzed . | . . . . . . . . . . . Part Schematics Acquired . | . . . . . . . . . . . Parts Damaged . | . . . . . . . . . . . Bothacking | -11 -10 -10 -10 -9 -8 -8 -8 -7 -7 -7 ------------ Run | Jun Mat Min Exi Min Mat Sto Gar Fac Gar Fac Used RIF Installer 2 | . . . . . . . 1 . 1 . Patrol Navigation 1 | . . . . . . . . . 1 . Robots Hacked 16 | . . . . . . . . . 4 12 Non-combat 3 | . . . . . . . . . . 3 Combat 13 | . . . . . . . . . 4 9 Robot Hacks Applied 19 | . . . . . . . . . 4 15 parse_system 4 | . . . . . . . . . 1 3 drop_inventory 3 | . . . . . . . . . . 3 find_garrison 1 | . . . . . . . . . . 1 overwrite_iff 1 | . . . . . . . . . . 1 formatsys_high 10 | . . . . . . . . . 3 7 Relay Couplers Released 15 | . . . . . . . 3 . 12 . Machine Destruction 15 | . . . . . . . 3 . 12 . Attached 8 | . . . . . . . . . 4 4 Fabnet Peak Effective % . | . . . . . . . . . . . Robots Rewired 14 | . . . . . . . 9 . 5 . Allies Hacked 2 | . . . . . . . . . 2 . Hacks Repelled . | . . . . . . . . . . . Allies | -11 -10 -10 -10 -9 -8 -8 -8 -7 -7 -7 -------- Run | Jun Mat Min Exi Min Mat Sto Gar Fac Gar Fac Total Allies 41 | . . . . 3 . 1 9 . 8 20 Largest Group 7 | . . . . 3 3 1 7 4 6 4 Highest-Rated Group 118 | . . . . 40 40 10 118 61 80 107 Highest-Rated Ally 32 | . . . . 16 16 10 21 21 32 32 Total Orders 25 | . . . . . . 2 18 . 5 . STAY 15 | . . . . . . 1 11 . 3 . FOLLOW 10 | . . . . . . 1 7 . 2 . Ally Attacks 204 | . . . . . 25 . 64 . 51 64 Total Damage 3597 | . . . . . 221 . 1173 . 1024 1179 Kills 34 | . . . . . 4 . 9 . 9 12 Allies Corrupted 1 | . . . . . . . . . 1 . Allies Melted . | . . . . . . . . . . . Intel | -11 -10 -10 -10 -9 -8 -8 -8 -7 -7 -7 ------- Run | Jun Mat Min Exi Min Mat Sto Gar Fac Gar Fac Robot Analysis Total 6 | . 3 . . . 3 . . . . . Derelict Logs Recovered 2 | . . 1 . 1 . . . . . . Drone Launches . | . . . . . . . . . . . Drone Recoveries . | . . . . . . . . . . . Exploration | -11 -10 -10 -10 -9 -8 -8 -8 -7 -7 -7 ------------- Run | Jun Mat Min Exi Min Mat Sto Gar Fac Gar Fac Turns Passed 12934 | . 1641 2339 459 946 1434 302 1704 141 2304 1664 Spaces Moved 4867 | 1 534 613 192 386 631 112 776 80 1051 491 Core . | . . . . . . . . . . . Treads 1583 | . 111 613 192 386 70 . . . . 211 Legs 424 | 1 423 . . . . . . . . . Wheels 2860 | . . . . . 561 112 776 80 1051 280 Hover . | . . . . . . . . . . . Flight . | . . . . . . . . . . . Fastest Speed 120 | 120 120 240 240 240 130 155 150 165 145 155 Average Speed 203 | 120 252 240 240 240 156 171 155 165 171 276 Slowest Speed 560 | 120 260 240 240 240 320 230 245 165 220 560 Overloaded Moves . | . . . . . . . . . . . Propulsion Burnouts . | . . . . . . . . . . . Robots Hopped . | . . . . . . . . . . . Cave-ins Triggered . | . . . . . . . . . . . Exploration Rate (%) 51 | 2 86 97 58 96 59 21 67 3 57 22 Regions Visited 10 Branch Regions 4 Pre-discovered Areas 4 | . 2 . 1 1 . . . . . . Known Exits Taken 3 | . . . . . 1 1 . 1 . . Unknown Exits Taken 5 | 1 1 1 1 1 . . . . . . Scrap Searched 3 | . . 1 . 2 . . . . . . Spaces Dug 59 | . 2 20 . . 14 . 13 . 4 6 Terrain Destroyed 415 | . 85 79 . 37 63 5 54 . 43 49 Melee 20 | . 2 11 . . 3 . . . 4 . Projectile 22 | . . . . . 4 5 1 . . 12 AOE 373 | . 83 68 . 37 56 . 53 . 39 37 Terrain Rammed . | . . . . . . . . . . . Walls Destroyed . | . . . . . . . . . . . Machines Disabled . | . . . . . . . . . . . Actions | -11 -10 -10 -10 -9 -8 -8 -8 -7 -7 -7 --------- Run | Jun Mat Min Exi Min Mat Sto Gar Fac Gar Fac Total 7106 | . 730 1389 191 397 931 181 1125 89 1401 672 Wait 1234 | . 89 722 . . 128 47 110 3 92 43 Move 4859 | . 533 612 191 385 630 112 775 80 1050 491 Hop . | . . . . . . . . . . . Pick Up 102 | . 17 1 . 2 25 . 15 2 29 11 Fast Attach 45 | . 5 . . . 11 2 10 . 10 7 Attach 61 | . 6 1 . . 13 . 9 2 26 4 Detach 8 | . 3 . . . . . . 1 4 . Swap 61 | . 11 3 . . 18 . 10 1 8 10 Drop 70 | . 7 . . 1 21 . 17 . 14 10 Fire 400 | . 57 8 . 7 58 20 83 . 73 94 Melee 100 | . 2 40 . . 26 . . . 32 . Ram 1 | . . . . . 1 . . . . . Kick . | . . . . . . . . . . . Crush 4 | . . 2 . 2 . . . . . . Escape Stasis 53 | . . . . . . . 32 . 21 . Rewire 108 | . . . . . . . 64 . 42 2 Trap . | . . . . . . . . . . . Miscellaneous . | . . . . . . . . . . . Route ------- -11/Junkyard -10/Materials (discovered 5 exits: [*Mat x3] / [*Min x2]) -10/Mines (discovered 3 exits: [*Mat x2] / *Exi) -10/Exiles -9/Mines (discovered 2 exits: *Mat x2) -8/Materials (discovered 3 exits: *Fac / *Sto x2) -8/Storage -8/Garrison (discovered 3 exits: *Fac x3) -7/Factory -7/Garrison (discovered 4 exits: *Fac x4) -7/Factory History --------- Turn | Location | Event 1 | -11/Junkyard | Discovered new exit (range 0) 1 | -11/Junkyard | Entered Materials 235 | -10/Materials | Discovered new exit (range 8) 318 | -10/Materials | Discovered new exit (range 10) 337 | -10/Materials | Build established: Mutant 531 | -10/Materials | Discovered new exit (range 15) 692 | -10/Materials | Discovered new exit (range 13) 1380 | -10/Materials | Discovered new exit (range 4) 1642 | -10/Materials | Entered Mines 1662 | -10/Mines | Met a Derelict bent on vengeance 1744 | -10/Mines | Assembled infested the area 1749 | -10/Mines | Assisted by a Guerilla fighting off Assembled 3037 | -10/Mines | Discovered new exit (range 10) 3219 | -10/Mines | Discovered new exit (range 13) 3554 | -10/Mines | Deemed a non-threat by the Exiles lab entrance 3554 | -10/Mines | Discovered new exit (range 5) 3801 | -10/Mines | Found a hidden stash of uninstalled traps 3981 | -10/Mines | Entered Exiles 4041 | -10/Exiles | Met 8R-AWN 4080 | -10/Exiles | Met EX-HEX 4176 | -10/Exiles | Met EX-DEC 4185 | -10/Exiles | Learned location of Zion (-6) 4413 | -10/Exiles | Discovered new exit (range 14) 4440 | -10/Exiles | Entered Mines 4793 | -9/Mines | Discovered new exit (range 15) 4800 | -9/Mines | Core integrity fell below 50% 5057 | -9/Mines | Assisted by bots powering up and referring to "LRC-V3" 5254 | -9/Mines | Discovered new exit (range 8) 5386 | -9/Mines | Entered Materials 5386 | -8/Materials | Accompanied by 3 allies 5386 | -8/Materials | Evolved 4 slots: Utility x4 6110 | -8/Materials | Identified exit to Storage 6775 | -8/Materials | Discovered new exit (range 16) 6820 | -8/Materials | Entered Storage 7122 | -8/Storage | Identified exit to Garrison 7122 | -8/Storage | Entered Garrison 7122 | -8/Garrison | Accompanied by 1 ally 7131 | -8/Garrison | Triggered checkpoint 7350 | -8/Garrison | Triggered checkpoint 7450 | -8/Garrison | Triggered checkpoint 7471 | -8/Garrison | Garrison Relay disabled 7729 | -8/Garrison | Destroyed 9 combat bots 8150 | -8/Garrison | Build established: Commander-Mutant 8242 | -8/Garrison | Triggered checkpoint 8308 | -8/Garrison | Triggered checkpoint 8395 | -8/Garrison | Installed Relay Interface Framework 8406 | -8/Garrison | Discovered new exit (range 13) 8480 | -8/Garrison | Discovered new exit (range 25) 8480 | -8/Garrison | Discovered new exit (range 68) 8480 | -8/Garrison | Discovered new exit (range 73) 8556 | -8/Garrison | Triggered checkpoint 8570 | -8/Garrison | Core integrity fell below 50% 8606 | -8/Garrison | Triggered checkpoint 8658 | -8/Garrison | Spotted B-75 Beast 8687 | -8/Garrison | Destroyed B-75 Beast 8825 | -8/Garrison | Identified exit to Factory 8826 | -8/Garrison | Entered Factory 8826 | -7/Factory | Accompanied by 4 allies 8826 | -7/Factory | Evolved 2 slots: Power x1, Weapon x1 8889 | -7/Factory | Build established: Scavenger-Mutant 8964 | -7/Factory | Identified exit to Garrison 8967 | -7/Factory | Entered Garrison 8967 | -7/Garrison | Accompanied by 4 allies 9283 | -7/Garrison | Expanded RIF knowledge: Patrol Navigation 9368 | -7/Garrison | Triggered checkpoint 9552 | -7/Garrison | Lost 3 parts (1n1u1w) 9801 | -7/Garrison | Triggered checkpoint 9811 | -7/Garrison | Triggered checkpoint 9840 | -7/Garrison | Triggered checkpoint 9911 | -7/Garrison | Lost 5 parts (4u1w) 10234 | -7/Garrison | Triggered checkpoint 10296 | -7/Garrison | Garrison Relay disabled 10362 | -7/Garrison | Triggered checkpoint 10406 | -7/Garrison | Garrison Relay disabled 10583 | -7/Garrison | Discovered new exit (range 3) 10585 | -7/Garrison | Identified exit to Factory 10603 | -7/Garrison | Build established: Bothacker-Mutant 10644 | -7/Garrison | Spotted B-75 Beast 10644 | -7/Garrison | Spotted B-75 Beast 10785 | -7/Garrison | Discovered exit to Factory (range 66) 10785 | -7/Garrison | Discovered exit to Factory (range 39) 10785 | -7/Garrison | Discovered exit to Factory (range 74) 10785 | -7/Garrison | Discovered exit to Factory (range 51) 10819 | -7/Garrison | Triggered checkpoint 10877 | -7/Garrison | Lost 4 parts (2p2w) 11271 | -7/Garrison | Entered Factory 11271 | -7/Factory | Accompanied by 2 allies 11459 | -7/Factory | Core integrity fell below 50% 12471 | -7/Factory | First assault squad dispatched 12627 | -7/Factory | Core integrity fell below 20% 12935 | -7/Factory | Self-destructed Last Messages --------------- 12823_ Acquired Hvy. Rocket Launcher. 12826_ ALERT: Cargo convoy en route, clear transfer corridor. 12861_ Connecting with Terminal... 12861_ ALERT: Suspicious activity at Terminal F020. Dispatching Investigation squad. 12871_ ALERT: Significant disruption in Zone 6N, assault force dispatched. 12924_ C-30 ARC bursts open, deploying its payload. 12924_ G-50 Soldier unfolds itself. 12924_ B-48 Gladiator unfolds itself. 12924_ G-47 Trooper unfolds itself. 12924_ L-41 Fighter unfolds itself. 12924_ I-36 Angel unfolds itself. 12925_ Relay Coupler [NC] destroyed. 12925_ Destroyed Relay Coupler [NC]. 12925_ Pressure Siphon disabled. 12930_ Guardian 4b suffers critical hit (Burn). 12931_ Destroyed Com. Wheel. 12931_ Destroyed Power Amplifier. 12932_ The unstable cave ceiling collapses. 12934_ Guardian 4b destroyed. Map ----- +----------------------------------------------------+ | "" "" ??????????????????????????????? | | ""T?????????????????????????????????? | | ""?????????????????????????????????? | | ?????????????????????????????????? | | ##?#???????????????????????????????????? | | ####???????????????????????????????????? | | #T #########???????###+##??????????????? | | ????? #?????????????? | | ????? +?????????????? | | ????? #?????????????? | | ################???# #?????????????? | | #????????# #???# #?????????????? | | ########## "" #???# +?????????????? | | T #???# #?????????????? | | ########## #???# #?????????????? | | ?????????# #???# #?????????????? | | ?????????### # #?# #?????????????? | | ???????????# ## #?????????????? | | ???????????# # #?########????? | | ???????????# # ### ?????? | | ???????????# i%g # """"?????? | | ?????????## """" ????? | | ???????+## b """" ????? | | g %!"""" ???? | | l """" ???? | | "" @ """" ???? | | ####### """" " " "" #?? | | ??????# """" """" " #########??? | | ??????# ?????????? | | ??????# """" # ????????? | | ??????# ?"""" + ???????? | | ??????+ ???""" "" "" # ??????? | | ???????????? "F "" #?""""""?????? | | ????????????? """"" #?"""""" ????? | | ?????????????####+#########?"""""??????? | | ???????????????????????????????????????? | | ???????????????????????????????????????? | | ???????????????????????????????????????? | | ???????????????????????????????????????? | | ???????????????????????????????????????? | | ???????????????????????????????????????? | | ???????????????????????????????????????? | | ???????????????????????????????????????? | | ???????????????????????????????????????? | | ???????????????????????????????????????? | | ???????????????????????????????????????? | | ???????????????????????????????????????? | | ???????????????????????????????????????? | | ???????????????????????????????????????? | | ???????????????????????????????????????? | +----------------------------------------------------+ Best States ------------- Heat Dissipation 61 Coolant Potential 65 Energy Generation 29 Energy Capacity 365 Matter Stores 300 Matter Capacity 300 Sight Range 16 Robot Scan Range 15 Terrain Scan Density 10 Armor Coverage 675 Resistance: EM 15 Core Shielding 20 Evasion (%) 55 Targeting Accuracy 5 Recoil Reduction 2 Particle Charging 15 Offensive Hacking 24 Relay Coupler Types 3 Relay Coupler Value 69 Item Schematics ----------------- Huge Storage Unit | -10/Materials | Hacked Robot Schematics ------------------ None Fabricated ------------ Nothing Alien Tech Used ----------------- None Achievements -------------- None Challenges ------------ None Game ------ Seed MissileEtherialProtomatter Manual? 0 Play Time 01:03:00 Cumulative 366.8 hours Start 2023.06.21 @ 16:54:05 End 2023.06.22 @ 13:55:04 Sessions 3 Manual Loads 0 Difficulty Rogue Special Mode None Game No. 526 Rogue 499 Adventurer 4 Explorer 23 Win Type - Total 20 Types 14/0/2/2/1/0/0/1/0 Lore% 82 Gallery% 93 Achievement% 83 Wizard Run 0 Options --------- ASCII 0 Keyboard 1 Movement Numpad Keybinds 0 Fullscreen 1 Font 18/SmallcapsGlow Map View 76x50 Tactical HUD 1 Map Filters NONE Filters NONE Steam 1 RUN: d19055d9-b047-479d-8cb0-8b17605d6200